bitfinex/quotes_ETHUSD_20220117
["timestamp","ask_amount","ask_price","bid_price","bid_amount"]
[1642410758836,0.83653423,3282.7,3282.6,0.04504083]
[1642410763891,0.83653423,3282.7,3282.4,0.0467461]
[1642410764291,0.83653423,3282.7,3282.5,0.00113685]
[1642410765392,0.83653423,3282.7,3282.5,2.61199307]
[1642410765896,0.83653423,3282.7,3282.5,0.00113685]
[1642410767655,0.83653423,3282.7,3282.5,2.61205428]
[1642410768753,0.83653423,3282.7,3282.6,0.04504083]
[1642410773301,2.35227743,3282.7,3282.6,0.04504083]
[1642410773940,2.35227743,3282.7,3282.5,0.04617768]
[1642410779392,1.17681054,3283.3,3282.5,0.04617768]
[1642410779591,1.17681054,3283.3,3282.5,0.97837768]
[1642410779790,0.00284212,3283.2,3282.5,1.31008088]
[1642410779991,0.00284212,3283.2,3282.6,2.66999942]
[1642410780193,0.00568424,3283.7,3282.5,0.37626488]
[1642410780396,1.10296817,3282.8,3282.5,0.37626488]
[1642410780594,1.10296817,3282.8,3282.5,0.34617768]
[1642410780794,1.10296817,3282.8,3282.6,2.61062075]
[1642410781039,1.10296817,3282.8,3282.6,2.6500138]
[1642410782444,1.10296817,3282.8,3282.7,2.61062075]
[1642410783646,1.10296817,3282.8,3282.7,2.64529203]
[1642410783847,1.10296817,3282.8,3282.7,2.69026326]
[1642410785890,1.10296817,3282.8,3282.7,2.65559198]
[1642410786692,1.10296817,3282.8,3282.7,0.04497123]
[1642410787493,4.13699182,3282.8,3282.7,2.65574559]
[1642410787891,2.10296817,3282.8,3282.7,2.65574559]
[1642410788092,1.10296817,3282.8,3282.7,2.65574559]
[1642410788296,1.10296817,3282.8,3282.7,0.04497123]
[1642410788752,5.1573078,3282.8,3282.5,0.04610808]
[1642410788947,5.4573078,3282.8,3282.5,0.04610808]
[1642410789152,1.0,3282.7,3282.5,0.04610808]
[1642410789350,2.87845772,3282.6,3282.5,0.04610808]
[1642410789550,1.0,3282.6,3282.5,0.04610808]
[1642410789952,1.0,3282.7,3282.5,0.04610808]
[1642410790152,2.23189856,3282.8,3282.5,0.04610808]
[1642410790966,3.53189856,3282.8,3282.5,0.04610808]
[1642410791152,2.84911034,3282.7,3282.5,0.04610808]
[1642410791355,3.23189856,3282.8,3282.5,0.04610808]
[1642410791653,1.0,3282.7,3282.5,0.04610808]
[1642410792891,2.90669749,3282.6,3282.5,0.04610808]
[1642410793092,3.90669749,3282.6,3282.5,0.04610808]
[1642410793292,6.35,3282.5,3281.3,5.45461574]
[1642410793497,0.76208,3282.3,3281.3,5.45461574]
[1642410793693,1.06799574,3282.2,3281.4,0.00625265]
[1642410793891,1.40185734,3281.6,3281.4,0.00625265]
[1642410794291,1.40185734,3281.6,3281.2,0.0073895]
[1642410794993,1.0802639,3281.5,3281.2,0.0073895]
[1642410796045,1.0802639,3281.5,3280.8,0.0096632]
[1642410796339,3.98925488,3281.5,3280.8,0.0096632]
[1642410796741,1.0802639,3281.5,3280.8,0.0096632]
[1642410797241,5.01428041,3281.5,3280.8,0.0096632]
[1642410797440,4.01428041,3281.5,3280.8,0.0096632]
[1642410798245,1.0,3281.4,3280.8,0.0096632]
[1642410798443,1.33560822,3281.1,3280.8,0.0096632]
[1642410798842,1.33560822,3281.1,3281.0,0.00118378]
[1642410799242,1.33560822,3281.1,3281.0,0.00971013]
[1642410799797,1.0,3281.4,3281.0,0.00971013]
[1642410800192,1.0,3281.4,3281.1,0.00795792]
[1642410800392,1.0802639,3281.5,3281.1,0.00795792]
[1642410802892,1.3802639,3281.5,3281.1,0.00795792]
[1642410803092,2.3802639,3281.5,3281.1,0.00795792]
[1642410803847,2.3802639,3281.5,3281.3,0.00097479]
[1642410808791,2.0802639,3281.5,3281.1,0.00886306]
[1642410809191,1.0802639,3281.5,3281.2,0.0073895]
[1642410809391,2.0802639,3281.5,3281.2,0.0073895]
[1642410809992,1.0802639,3281.5,3281.2,0.0073895]
[1642410810192,2.0802639,3281.5,3281.2,0.0073895]
[1642410810593,1.0802639,3281.5,3281.2,0.0073895]
[1642410810793,2.8684164,3281.4,3281.2,0.0073895]
[1642410811040,2.0802639,3281.5,3281.2,0.0073895]
[1642410811041,1.0,3281.3,3281.2,0.0073895]
[1642410811444,2.0802639,3281.5,3281.2,0.0073895]
[1642410812144,1.0802639,3281.5,3281.2,0.0073895]
[1642410812343,4.92036237,3281.5,3281.2,0.0073895]
[1642410812544,2.0802639,3281.5,3281.2,0.0073895]
[1642410812942,1.0802639,3281.5,3281.2,0.0073895]
[1642410813143,4.9305841,3281.5,3281.2,0.0073895]
[1642410813345,1.0802639,3281.5,3281.2,0.0073895]
[1642410813946,1.0802639,3281.5,3281.4,0.00090514]
[1642410814248,3.95414497,3281.5,3281.4,0.00090514]
[1642410814644,4.95414497,3281.5,3281.4,0.00090514]
[1642410815496,2.0802639,3281.5,3281.4,0.00090514]
[1642410815896,5.94467124,3281.5,3281.4,0.00090514]
[1642410816100,5.94467124,3281.5,3281.2,0.0073895]
[1642410816101,0.76232,3281.4,3281.2,0.0073895]
[1642410816295,0.438,3281.3,3281.2,0.0073895]
[1642410816495,0.738,3281.3,3280.5,0.01136847]
[1642410816903,1.038,3281.3,3280.5,0.01136847]
[1642410817296,0.7623218,3281.2,3280.5,0.01136847]
[1642410817499,2.33079071,3281.1,3280.5,0.01136847]
[1642410817699,3.09309071,3281.1,3280.5,0.01136847]
[1642410817900,3.39309071,3281.1,3280.5,0.01136847]
[1642410818099,4.05371446,3281.0,3280.5,0.01136847]
[1642410818544,0.438,3280.9,3280.5,0.01136847]
[1642410818748,2.90294809,3280.8,3280.2,0.01307374]
[1642410818948,1.16592434,3280.5,3280.2,0.01307374]
[1642410819152,1.14530182,3280.4,3280.2,0.01307374]
[1642410819551,1.14530182,3280.4,3280.0,0.01421058]
[1642410822993,1.14530182,3280.4,3280.1,2.61246284]
[1642410823394,1.14530182,3280.4,3280.2,0.01307374]
[1642410823996,1.44530182,3280.4,3280.2,0.01390988]
[1642410824196,3.04681303,3280.3,3280.2,0.01390988]
[1642410824502,3.87441303,3280.3,3280.2,0.00083614]
[1642410824895,4.87441303,3280.3,3280.2,0.00083614]
[1642410825697,3.87441303,3280.3,3280.2,0.00083614]
[1642410825898,4.17441303,3280.3,3280.2,0.00083614]
[1642410826155,4.04681303,3280.3,3280.2,0.00083614]
[1642410826351,1.90776182,3280.4,3280.2,0.00083614]
[1642410826552,0.438,3280.9,3280.2,0.00083614]
[1642410826749,0.438,3280.9,3280.3,0.01250531]
[1642410826950,1.08295675,3280.8,3280.3,0.01250531]
[1642410827354,0.3,3280.7,3280.3,0.01250531]
[1642410827752,2.45744167,3280.8,3280.3,0.01250531]
[1642410828051,1.08295675,3280.8,3280.3,0.01250531]
[1642410829251,1.08295675,3280.8,3279.9,0.01477901]
[1642410830110,1.08295675,3280.8,3279.9,2.96716294]
[1642410830513,1.08295675,3280.8,3280.0,2.62671643]
[1642410830712,1.08295675,3280.8,3280.1,2.72069198]
[1642410830913,1.0,3281.3,3280.1,2.73433414]
[1642410831113,1.5673,3281.6,3280.3,0.01460749]
[1642410831114,1.1293,3281.6,3280.3,0.01460749]
[1642410831312,3.9043,3282.4,3280.2,1.53713374]
[1642410831512,1.1641,3282.3,3280.4,0.01193689]
[1642410831713,1.1641,3282.3,3280.4,4.9236684]
[1642410831912,0.92191112,3282.0,3280.8,0.76183]
[1642410832111,0.92191112,3282.0,3280.5,3.82906063]
[1642410832112,0.92191112,3282.0,3281.1,1.31614417]
[1642410832311,1.19988,3282.8,3281.1,5.25042387]
[1642410832516,0.76188,3282.8,3281.2,7.72917922]
[1642410832712,0.00113685,3282.7,3281.2,8.02917922]
[1642410832915,0.00113685,3282.7,3281.3,0.00682108]
[1642410833211,0.99585599,3282.0,3281.3,0.00682108]
[1642410833653,0.99585599,3282.0,3281.3,2.61932693]
[1642410833848,0.99585599,3282.0,3281.3,2.65733214]
[1642410834048,0.99585599,3282.0,3281.4,2.87645192]
[1642410834249,0.99585599,3282.0,3281.4,0.00625265]
[1642410834448,0.92998239,3281.9,3281.5,0.00568423]
[1642410834648,0.92998239,3281.9,3281.4,0.00625265]
[1642410835054,1.1315216,3281.8,3281.4,0.00625265]
[1642410835249,0.92998239,3281.9,3281.3,0.00682108]
[1642410837503,0.76194,3282.6,3281.3,0.93902108]
[1642410837706,0.00113685,3282.7,3281.4,2.94703175]
[1642410837902,0.00113685,3282.7,3281.4,4.1431844]
[1642410838103,1.37766607,3282.6,3281.5,0.00568423]
[1642410838404,1.67766607,3282.6,3281.5,0.00568423]
[1642410838602,0.87402892,3282.3,3281.5,0.00568423]
[1642410840809,1.0,3282.5,3281.5,0.00568423]
[1642410841053,1.67766607,3282.6,3281.5,0.00568423]
[1642410841848,1.01186363,3282.3,3281.5,0.00568423]
[1642410843748,1.31186363,3282.3,3281.5,0.00568423]
[1642410845138,0.3,3282.3,3281.5,0.00568423]
[1642410845444,0.3,3282.5,3281.5,0.00568423]
[1642410845638,2.43960607,3282.6,3281.5,0.00568423]
[1642410846638,3.43960607,3282.6,3281.5,0.00568423]
[1642410846838,2.43960607,3282.6,3281.5,0.00568423]
[1642410848042,2.87760607,3282.6,3281.5,0.00568423]
[1642410848241,2.11566607,3282.6,3281.5,0.00568423]
[1642410848441,1.0,3282.5,3281.5,0.00568423]
[1642410848648,2.11566607,3282.6,3281.5,0.00568423]
[1642410849547,0.85763052,3282.3,3281.5,0.00568423]
[1642410849950,1.15763052,3282.3,3281.5,0.00568423]
[1642410850551,0.3,3282.3,3281.5,0.00568423]
[1642410850948,0.3,3282.5,3281.5,0.00568423]
[1642410851548,0.90279834,3282.5,3281.5,0.00568423]
[1642410851748,1.90279834,3282.5,3281.5,0.00568423]
[1642410853294,4.81860123,3282.5,3281.5,0.00568423]
[1642410853494,4.83928596,3282.5,3281.5,0.00568423]
[1642410853796,2.20279834,3282.5,3281.5,0.00568423]
[1642410854394,5.11266626,3282.5,3281.5,0.00568423]
[1642410854595,5.15761675,3282.5,3281.5,0.00568423]
[1642410854894,5.17750819,3282.5,3281.5,0.00568423]
[1642410855093,5.05752632,3282.5,3281.5,0.00568423]
[1642410855293,5.15227295,3282.5,3281.5,0.00568423]
[1642410855496,5.08112247,3282.5,3281.5,0.00568423]
[1642410855700,2.20279834,3282.5,3281.5,0.00568423]
[1642410857252,5.08209988,3282.5,3281.5,0.00568423]
[1642410857653,2.20279834,3282.5,3281.5,0.00568423]
[1642410859256,5.08138436,3282.5,3281.5,0.00568423]
[1642410859457,2.20279834,3282.5,3281.5,0.00568423]
[1642410860906,5.04754575,3282.5,3281.5,0.00568423]
[1642410861103,2.20279834,3282.5,3281.5,0.00568423]
[1642410861502,5.06567098,3282.5,3281.5,0.00568423]
[1642410861902,2.20279834,3282.5,3281.5,0.00568423]
[1642410862903,1.49676377,3282.1,3281.5,0.00568423]
[1642410863106,2.8184797,3282.0,3281.5,0.00568423]
[1642410863306,0.438,3281.9,3281.5,0.00568423]
[1642410863567,1.438,3281.9,3281.0,0.00852635]
[1642410863749,0.438,3281.9,3281.0,0.00852635]
[1642410863950,0.438,3281.9,3280.8,1.1344]
[1642410863951,0.94435979,3281.4,3280.9,0.00909477]
[1642410864349,0.3,3281.4,3280.9,0.00909477]
[1642410864751,0.6,3281.5,3280.9,0.00909477]
[1642410865049,2.5622841,3281.7,3280.9,0.00909477]
[1642410865250,2.97394573,3281.6,3280.9,0.00909477]
[1642410865449,3.01900205,3281.6,3280.9,0.00909477]
[1642410865650,5.87564478,3281.6,3280.9,0.00909477]
[1642410867296,2.18775145,3281.6,3280.9,0.00909477]
[1642410867497,5.05148197,3281.6,3280.9,0.00909477]
[1642410868500,2.18775145,3281.6,3280.9,0.00909477]
[1642410868704,5.03886521,3281.6,3280.9,0.00909477]
[1642410869504,2.18775145,3281.6,3280.9,0.00909477]
[1642410871152,5.01843934,3281.6,3280.9,0.00909477]
[1642410871747,1.01849087,3281.2,3280.9,0.00909477]
[1642410872149,1.31849087,3281.2,3280.9,0.00909477]
[1642410872447,1.31849087,3281.2,3280.5,0.01136847]
[1642410873447,1.31849087,3281.2,3280.6,2.61253957]
[1642410873851,1.31849087,3281.2,3280.7,0.01023162]
[1642410874793,1.31849087,3281.2,3280.8,2.61253957]
[1642410875193,1.31849087,3281.2,3280.9,0.00909477]
[1642410875394,2.31849087,3281.2,3280.9,0.00909477]
[1642410876399,1.39991001,3281.1,3280.9,0.00909477]
[1642410876995,1.3,3281.3,3280.9,0.00909477]
[1642410877196,1.3,3281.3,3280.5,0.01136847]
[1642410877396,0.3,3281.3,3280.5,0.01136847]
[1642410877598,1.3,3281.3,3280.5,0.01136847]
[1642410877797,0.3,3281.3,3280.5,0.01136847]
[1642410877994,1.3,3281.3,3280.5,0.01136847]
[1642410878195,1.3,3281.3,3280.6,2.61243423]
[1642410878396,0.3,3281.3,3280.6,2.61243423]
[1642410878648,4.38095478,3281.5,3280.7,0.01023162]
[1642410878847,3.43547157,3281.5,3280.7,0.01023162]
[1642410879056,2.43547157,3281.5,3280.7,0.01023162]
[1642410879247,1.0,3281.4,3280.7,0.01023162]
[1642410879447,2.43547157,3281.5,3280.7,0.01023162]
[1642410880448,3.56834049,3281.5,3280.8,2.61243423]
[1642410880649,1.0,3281.4,3280.8,2.61243423]
[1642410880849,1.0,3281.4,3280.9,0.00909477]
[1642410881051,2.43547157,3281.5,3280.9,0.00909477]
[1642410881451,0.738,3281.5,3280.9,0.00909477]
[1642410881656,0.3,3281.5,3280.9,0.00909477]
[1642410881852,0.3,3281.9,3281.1,1.03840733]
[1642410882057,0.438,3282.4,3281.1,1.78550733]
[1642410882301,0.438,3282.4,3281.2,1.2480895]
[1642410882501,0.438,3282.4,3281.3,1.45826271]
[1642410882699,0.438,3282.4,3281.3,1.46508379]
[1642410882901,0.438,3282.4,3281.4,0.00625265]
[1642410883901,0.438,3282.4,3281.5,2.61243423]
[1642410884304,0.438,3282.4,3281.6,0.00511581]
[1642410885503,0.761995,3282.2,3281.5,0.00568423]
[1642410885703,0.3,3282.1,3281.5,0.00568423]
[1642410885906,1.14718222,3282.1,3281.4,0.00625265]
[1642410886660,0.3,3282.1,3281.4,0.00625265]
[1642410886863,1.524025,3282.2,3281.4,0.00625265]
[1642410887058,0.438,3282.4,3281.4,0.00625265]
[1642410887059,1.438,3282.4,3281.4,0.00625265]
[1642410887259,0.3,3282.1,3281.4,0.00625265]
[1642410887458,1.438,3282.4,3281.4,0.00625265]
[1642410887663,1.08481266,3282.0,3281.4,0.00625265]
[1642410888059,1.38481266,3282.0,3281.4,0.00625265]
[1642410888259,4.37215605,3282.0,3281.4,0.00625265]
[1642410888660,1.0,3281.9,3281.4,0.00625265]
[1642410888860,1.3,3281.9,3281.4,0.00625265]
[1642410889261,4.1789769,3281.8,3281.4,0.00625265]
[1642410889466,5.2411077,3281.8,3281.4,0.00625265]
[1642410889661,1.0,3281.7,3281.4,0.00625265]
[1642410890699,3.36518616,3281.8,3281.2,0.0073895]
[1642410890902,1.70432882,3281.8,3281.2,0.0073895]
[1642410891100,1.70432882,3281.8,3281.1,0.00795792]
[1642410891299,1.70432882,3281.8,3280.8,0.0096632]
[1642410891500,2.46645962,3281.8,3280.8,0.0096632]
[1642410891901,0.94422893,3281.5,3280.8,0.0096632]
[1642410892109,1.24422893,3281.5,3280.8,0.0096632]
[1642410892302,1.24422893,3281.5,3280.9,2.61216494]
[1642410892704,1.24422893,3281.5,3281.0,0.00852635]
[1642410892904,1.43679916,3281.2,3281.0,0.00852635]
[1642410893551,0.438,3281.1,3281.0,0.00852635]
[1642410894245,0.438,3281.1,3280.5,3.7321]
[1642410894246,1.438,3281.1,3280.6,0.01080004]
[1642410894447,1.052218,3280.8,3280.6,0.01080004]
[1642410894651,2.25255,3280.8,3280.6,0.01080004]
[1642410894846,0.3,3280.7,3280.6,0.01080004]
[1642410895047,0.3,3280.7,3280.5,0.01136847]
[1642410895948,1.65859892,3280.7,3280.6,2.61262693]
[1642410896348,1.65859892,3280.7,3280.6,2.62342697]
[1642410896349,0.3,3280.7,3280.6,2.62342697]
[1642410896751,1.200332,3280.8,3280.6,2.62342697]
[1642410896752,0.438,3280.8,3280.6,2.62342697]
[1642410897152,0.438,3280.8,3280.7,0.01023162]
[1642410897398,0.438,3280.8,3280.7,2.62285855]
[1642410898397,1.0,3280.9,3280.7,2.62285855]
[1642410898600,3.34260684,3281.0,3280.7,2.62285855]
[1642410898797,4.10491684,3281.0,3280.8,0.0096632]
[1642410899596,2.88576557,3280.9,3280.8,0.0096632]
[1642410899800,3.18576557,3280.9,3280.8,0.0096632]
[1642410899996,4.33753315,3280.9,3280.8,0.0096632]
[1642410900397,4.63753315,3280.9,3280.8,0.0096632]
[1642410900595,5.07553315,3280.9,3279.9,0.01477901]
[1642410900798,1.524802,3280.6,3279.9,0.01477901]
[1642410901050,4.61122828,3280.5,3279.9,0.01477901]
[1642410901250,0.3,3280.4,3279.9,0.01477901]
[1642410901448,0.438,3280.3,3279.8,0.01534743]
[1642410901649,0.438,3280.3,3280.0,2.61292022]
[1642410901849,2.33282536,3280.2,3280.0,2.61292022]
[1642410902050,3.93282536,3280.2,3280.1,0.01364216]
[1642410902248,4.37082536,3280.2,3280.1,0.01364216]
[1642410902453,4.37082536,3280.2,3280.0,2.50349727]
[1642410902849,4.37082536,3280.2,3279.4,5.45641431]
[1642410903050,4.37082536,3280.2,3279.3,3.9633]
[1642410903250,7.29984238,3280.2,3279.5,0.00341054]
[1642410903453,1.14673659,3279.7,3279.5,0.00341054]
[1642410904053,2.37564936,3279.7,3279.3,0.00454739]
[1642410904898,1.0,3279.8,3279.3,0.00454739]
[1642410905101,0.438,3279.9,3279.3,0.00454739]
[1642410905498,3.0,3279.7,3279.3,0.00454739]
[1642410905897,0.94831448,3279.5,3279.3,0.00454739]
[1642410906297,3.0,3279.7,3279.3,0.00454739]
[1642410906496,3.0,3279.7,3278.9,0.00682108]
[1642410908749,3.0,3279.7,3279.1,0.00160315]
[1642410909150,3.0,3279.7,3279.2,0.00511581]
[1642410909550,3.0,3279.7,3279.4,0.76439586]
[1642410909749,3.3,3279.7,3279.4,0.76439586]
[1642410910752,3.0,3279.7,3279.4,0.76439586]
[1642410910951,0.76252,3280.3,3279.4,0.76439586]
[1642410910952,1.20036,3280.8,3279.5,2.53061626]
[1642410911153,6.23236,3281.8,3279.9,0.00398399]
[1642410911154,3.8065,3281.2,3279.9,0.00398399]
[1642410911350,1.2996955,3281.1,3279.8,0.01275359]
[1642410911550,1.30066724,3281.1,3279.8,0.01275359]
[1642410911753,0.438,3281.2,3279.7,2.79299456]
[1642410911950,0.438,3281.2,3279.9,0.00113685]
[1642410911951,0.00113685,3280.3,3279.9,0.00113685]
[1642410912151,0.85868724,3280.6,3279.7,3.7934]
[1642410912152,0.80982409,3280.6,3279.8,0.00170527]
[1642410912401,0.80982409,3280.6,3279.8,0.00284212]
[1642410912602,0.00113684,3280.5,3279.8,0.00284212]
[1642410914897,0.00113684,3280.5,3280.2,0.76439586]
[1642410916155,0.00113684,3280.5,3280.3,2.57760342]
[1642410916349,0.00113684,3280.5,3280.3,3.73850342]
[1642410917350,0.00113684,3280.5,3280.3,3.76639369]
[1642410917752,0.00113684,3280.5,3280.4,2.5896581]
[1642410918061,0.00113684,3280.5,3280.4,3.97811947]
[1642410918458,0.00113684,3280.5,3280.3,1.1609]
[1642410918654,0.00113684,3280.5,3280.3,3.79109988]
[1642410918854,0.00113684,3280.5,3280.3,3.77884832]
[1642410919252,0.00113684,3280.5,3280.4,11.46809364]
[1642410919656,0.00113684,3280.5,3280.4,12.46809364]
[1642410919925,0.00113684,3280.5,3280.4,16.42889364]
[1642410920111,0.00113684,3280.5,3280.4,24.64142344]
[1642410920414,3.684e-05,3280.5,3280.4,25.03592933]
[1642410921310,3.684e-05,3280.5,3280.4,17.23592933]
[1642410921711,3.684e-05,3280.5,3280.4,17.53592933]
[1642410922112,3.684e-05,3280.5,3280.4,17.84276341]
[1642410922313,3.684e-05,3280.5,3280.4,8.99276341]
[1642410922513,3.684e-05,3280.5,3280.4,13.02969479]
[1642410922712,0.89186534,3281.9,3280.6,0.00076316]
[1642410922912,0.89186534,3281.9,3280.8,0.76199]
[1642410923116,0.89186534,3281.9,3280.9,0.3]
[1642410923117,0.00738951,3281.8,3280.9,0.3]
[1642410923412,0.89186534,3281.9,3280.8,0.3]
[1642410923413,0.00682109,3281.7,3280.8,0.3]
[1642410923648,0.00682109,3281.7,3280.7,1.3]
[1642410923848,0.00625266,3281.6,3280.7,1.3]
[1642410924048,0.00625266,3281.6,3280.9,0.76191]
[1642410924251,0.00568424,3281.5,3280.9,1.36191]
[1642410924450,0.00568424,3281.5,3281.0,0.76193]
[1642410924651,0.00511582,3281.4,3281.1,0.6]
[1642410925052,0.00454739,3281.3,3281.1,0.6]
[1642410925450,0.00397897,3281.2,3281.1,0.6]
[1642410926052,0.00397897,3281.2,3281.1,0.73819997]
[1642410926252,0.00397897,3281.2,3281.1,2.04659994]
[1642410926460,0.00397897,3281.2,3281.1,5.05076271]
[1642410926656,7.897e-05,3281.2,3281.1,6.65591545]
[1642410926854,2.92848303,3283.5,3281.1,30.36461545]
[1642410927053,0.438,3283.6,3281.8,0.6]
[1642410927295,0.01250531,3283.4,3281.9,3.7541]
[1642410927503,0.01250531,3283.4,3281.9,4.9122]
[1642410927699,0.438,3283.6,3281.9,5.2122]
[1642410927700,0.96040153,3282.3,3281.9,5.2122]
[1642410927900,0.96040153,3282.3,3282.0,3.9768]
[1642410928100,0.00568423,3282.2,3282.0,3.9768]
[1642410928305,0.00568423,3282.2,3281.9,3.7541]
[1642410928501,0.00511581,3282.1,3281.6,1.52332]
[1642410928703,0.00511581,3282.1,3281.5,1.1763]
[1642410928902,0.00454739,3282.0,3281.5,1.1763]
[1642410929100,1.14541118,3281.6,3281.5,1.4763]
[1642410929300,1.14541118,3281.6,3281.5,0.3]
[1642410929500,1.14768487,3281.6,3281.3,4.2655]
[1642410929903,0.00170527,3281.5,3281.2,0.3]
[1642410930106,0.00170527,3281.5,3281.1,0.87639994]
[1642410930303,0.00113685,3281.4,3281.1,0.87639994]
[1642410930604,0.00170527,3281.5,3281.3,1.14410793]
[1642410931063,0.00113685,3281.4,3281.3,1.14410793]
[1642410931659,0.00113685,3281.4,3281.3,0.38219793]
[1642410935598,0.00113685,3281.4,3281.3,0.76439586]
[1642410944008,1.09551925,3281.4,3281.3,0.76439586]
[1642410945007,2.64093837,3281.4,3281.3,0.76439586]
[1642410947451,4.07893837,3281.4,3281.3,0.76439586]
[1642410947650,4.67893837,3281.4,3280.4,3.7991]
[1642410947850,0.76235,3281.2,3280.4,3.7991]
[1642410948151,0.438,3281.1,3280.5,0.00397897]
[1642410948552,0.7623541,3281.0,3279.8,0.00795793]
[1642410948754,0.438,3280.9,3279.8,0.00795793]
[1642410949553,0.8550751,3279.9,3279.8,0.00795793]
[1642410949808,0.76234,3280.8,3279.8,0.00795793]
[1642410950008,0.438,3280.9,3279.8,0.77019793]
[1642410950210,0.438,3280.9,3279.8,0.76224]
[1642410950409,0.438,3280.9,3279.9,0.00738951]
[1642410950617,0.76218,3281.1,3279.9,2.6953713]
[1642410950813,1.00504447,3280.7,3280.0,1.49574816]
[1642410951009,1.00504447,3280.7,3280.0,0.00682108]
[1642410951212,1.00504447,3280.7,3279.9,2.61286991]
[1642410951213,1.00504447,3280.7,3280.1,0.00625266]
[1642410951411,1.00504447,3280.7,3280.0,0.00682108]
[1642410951813,1.00504447,3280.7,3280.0,2.72830873]
[1642410952214,1.00504447,3280.7,3280.1,0.00625266]
[1642410952410,1.00504447,3280.7,3280.1,2.61912257]
[1642410952816,1.00504447,3280.7,3280.2,0.00568424]
[1642410953212,1.00504447,3280.7,3280.2,2.61855415]
[1642410953671,1.00504447,3280.7,3280.3,0.00511581]
[1642410954270,1.00504447,3280.7,3280.3,2.61798572]
[1642410954671,3.76218,3281.1,3280.4,2.67960378]
[1642410954873,3.0,3281.1,3280.4,2.67960378]
[1642410955072,3.0,3281.1,3280.4,2.72271475]
[1642410955275,3.0,3281.1,3280.4,0.00454739]
[1642410955871,1.03467838,3281.0,3280.5,2.61286991]
[1642410956273,1.03467838,3281.0,3280.6,0.00341054]
[1642410956977,1.15486578,3280.9,3280.6,0.00341054]
[1642410957800,2.97923758,3280.9,3280.6,0.00341054]
[1642410958000,2.97923758,3280.9,3280.2,0.00568424]
[1642410958701,2.97923758,3280.9,3280.2,2.61841973]
[1642410959099,2.13240127,3280.3,3280.2,2.61273549]
[1642410959402,2.13240127,3280.3,3279.6,7.72508333]
[1642410959605,2.13240127,3280.3,3280.2,0.00568424]
[1642410959800,2.13240127,3280.3,3279.7,0.00852635]
[1642410963056,5.13240127,3280.3,3279.7,0.00852635]
[1642410964058,1.41626954,3279.8,3279.7,0.00852635]
[1642410964817,1.41626954,3279.8,3279.5,0.0096632]
[1642410965200,1.41626954,3279.8,3279.4,0.01023162]
[1642410965402,1.41626954,3279.8,3279.3,0.01080005]
[1642410965600,1.10891262,3279.7,3279.3,0.01080005]
[1642410966403,1.10891262,3279.7,3279.1,0.01193689]
[1642410967001,0.9627293,3279.2,3279.1,0.01193689]
[1642410967602,1.41626954,3279.8,3279.2,1.9254586]
[1642410967802,1.41626954,3279.8,3279.1,0.01193689]
[1642410968002,1.41626954,3279.8,3279.3,0.01080005]
[1642410968203,0.94044554,3279.7,3279.1,0.01193689]
[1642410968404,0.87796535,3279.7,3279.1,0.01193689]
[1642410968851,0.89470948,3279.2,3279.1,0.01193689]
[1642410970252,1.27328701,3280.0,3279.1,0.01193689]
[1642410971955,1.03452322,3279.9,3279.1,0.01193689]
[1642410972608,1.03452322,3279.9,3279.0,0.01250532]
[1642410972805,1.33452322,3279.9,3279.0,0.01250532]
[1642410973008,0.7625,3279.7,3279.0,0.01250532]
[1642410973205,0.7625,3279.7,3278.9,0.01307374]
[1642410973405,1.35191803,3279.5,3278.9,0.01307374]
[1642410973604,1.35191803,3279.5,3278.9,1.55095667]
[1642410973804,1.03583961,3279.4,3278.9,1.55095667]
[1642410974004,1.03583961,3279.4,3279.0,0.01250532]
[1642410975005,1.03583961,3279.4,3279.1,2.61347024]
[1642410975405,1.03583961,3279.4,3279.2,0.01136847]
[1642410976860,1.03583961,3279.4,3279.3,2.61347024]
[1642410977159,1.03583961,3279.4,3279.3,2.62427029]
[1642410981706,3.3,3279.9,3279.3,2.62427029]
[1642410981707,3.0,3279.9,3279.3,2.62427029]
[1642410982105,3.0,3279.9,3279.4,1.535188]
[1642410982305,3.0,3279.9,3279.5,0.03327296]
[1642410982505,3.0,3279.9,3279.5,0.0096632]
[1642410982707,3.0,3279.9,3279.6,0.00909478]
[1642410982907,3.0,3279.9,3279.5,0.0096632]
[1642410983306,3.0,3279.9,3279.4,1.3]
[1642410983307,3.0,3279.9,3279.4,1.31023162]
[1642410983552,3.0,3279.9,3279.6,2.61347024]
[1642410983953,3.0,3279.9,3279.7,0.00852635]
[1642410985757,3.0,3279.9,3279.8,2.61347024]
[1642410986155,3.0,3279.9,3279.8,2.62142817]
[1642410989704,2.98332519,3279.9,3279.8,2.62142817]
[1642410991254,2.519e-05,3279.9,3279.8,16.24759431]
[1642410991452,2.519e-05,3279.9,3279.8,15.54759431]
[1642410991652,2.519e-05,3279.9,3279.8,16.54759431]
[1642410991852,2.519e-05,3279.9,3279.8,16.67079431]
[1642410992053,2.519e-05,3279.9,3279.8,16.67399431]
[1642410992251,2.519e-05,3279.9,3279.8,18.20707724]
[1642410992451,1.12849051,3280.8,3279.9,1.4282746]
[1642410992652,1.12849051,3280.8,3280.1,0.76196]
[1642410992851,1.12849051,3280.8,3280.2,2.79899353]
[1642410993052,1.12849051,3280.8,3280.0,3.09287596]
[1642410993252,1.12849051,3280.8,3280.3,0.00511581]
[1642410993458,1.12849051,3280.8,3280.1,0.00625266]
[1642410993653,1.12849051,3280.8,3280.0,0.00682108]
[1642410993853,1.20479883,3280.3,3280.0,0.00682108]
[1642410994052,1.04967077,3280.2,3280.0,0.00682108]
[1642410995307,1.04967077,3280.2,3280.1,2.61347024]
[1642410995801,1.04967077,3280.2,3280.1,2.6197229]
[1642410998555,1.34967077,3280.2,3280.1,2.6197229]
[1642411001059,1.04967077,3280.2,3280.1,2.6197229]
[1642411001256,1.34967077,3280.2,3280.1,2.6197229]
[1642411004316,4.21411272,3280.2,3280.1,2.6197229]
[1642411004512,4.21411272,3280.2,3279.9,0.00077481]
[1642411004513,1.34967077,3280.2,3279.9,0.00077481]
[1642411004712,1.06237,3280.1,3279.9,0.00077481]
[1642411014369,4.06237,3280.1,3279.9,0.00077481]
[1642411020412,1.0,3280.0,3279.9,0.00077481]
[1642411020611,0.3,3280.0,3279.9,0.00077481]
[1642411020810,4.36237,3280.1,3279.9,0.00191166]
[1642411023955,4.36237,3280.1,3279.8,0.04609206]
[1642411024459,5.1248466,3280.1,3279.8,0.04609206]
[1642411024905,0.76252,3279.9,3279.0,10.72442507]
[1642411025103,1.5250275,3279.7,3279.0,10.72442507]
[1642411025307,1.5250275,3279.7,3279.1,0.00454738]
[1642411025603,2.45696849,3279.6,3279.1,0.00454738]
[1642411025802,2.75696849,3279.6,3279.1,0.00454738]